Cogmind - Beta 10.2 @@@ ROGUE MODE // 2020.10.30 @ 18:36:20 // Halloween2020/ForbiddenLore Player: Shodan Result: Destroyed by 8R-AWN with 8R-AWN's Boregun Performance ------------- Evolutions (1) 500 Regions Visited (5) 1000 Robots Destroyed (25) 125 Value Destroyed (589) 589 Prototype IDs (2) 40 Alien Tech Used (0) 0 Bonus (0) 0 TOTAL SCORE: 2254 Bonus ------- None Cogmind --------- Core Integrity 0/400 Matter 121/300 Energy 100/100 System Corruption 2% Temperature Cool (0) Movement Treading (160) Location -9/Exiles Parts ------- > --- POWER (1) -------- (None) > --- PROPULSION (2) --- Light Treads Light Treads > --- UTILITY (4) ------ Medium Storage Unit Medium Storage Unit Advanced Targeting Computer Advanced Targeting Computer > --- WEAPON (2) ------- Improved Assault Rifle Improved Assault Rifle > --- INVENTORY (12) --- Light Fission Core Improved Heat Sink Improved Sensor Array Improved Signal Interpreter Ion Cannon Peak State ------------ > --- POWER ------------ Improved Ion Engine > --- PROPULSION ------- Light Treads Light Treads > --- UTILITY ---------- Small Storage Unit Medium Storage Unit Advanced Targeting Computer Medium Armor Plating > --- WEAPON ----------- Improved Assault Rifle Improved Assault Rifle > --- INVENTORY -------- Improved Ion Engine Light Treads Improved Heat Sink Improved Sensor Array Improved Signal Interpreter Advanced Targeting Computer Ion Cannon Improved Assault Rifle Improved Assault Rifle [Rating: 19] Favorites ----------- Power Improved Ion Engine Engine Improved Ion Engine Propulsion Light Treads Treads Light Treads Leg Aluminum Leg Wheel Wheel Utility Small Storage Unit Device Improved Sensor Array Storage Small Storage Unit Processor Advanced Targeting Computer Protection Medium Armor Plating Weapon Improved Assault Rifle Energy Gun EM Pulse Gun Energy Cannon Ion Cannon Ballistic Gun Improved Assault Rifle Build | -11 -10 -10 -9 -9 -9 ------- Run | Scr Mat Min Mat Min Exi Slots Evolved 2 | . . . 2 . . Power . | . . . . . . Propulsion . | . . . . . . Utility 2 | . . . 2 . . Weapon . | . . . . . . Parts Attached 41 | 1 4 5 19 4 8 Power 4 | . . 1 2 . 1 Engine 4 | . . 1 2 . 1 Core . | . . . . . . Reactor . | . . . . . . Propulsion 13 | . 2 3 4 2 2 Treads 6 | . . . 2 2 2 Leg . | . . . . . . Wheel 7 | . 2 3 2 . . Hover . | . . . . . . Flight . | . . . . . . Utility 12 | 1 . . 7 1 3 Device 1 | . . . 1 . . Storage 4 | 1 . . 1 . 2 Processor 4 | . . . 3 . 1 Hackware . | . . . . . . Protection 3 | . . . 2 1 . Artifact . | . . . . . . Weapon 12 | . 2 1 6 1 2 Energy Gun 3 | . 2 . 1 . . Energy Cannon 1 | . . . 1 . . Ballistic Gun 8 | . . 1 4 1 2 Ballistic Cannon . | . . . . . . Launcher . | . . . . . . Special Weapon . | . . . . . . Impact Weapon . | . . . . . . Slashing Weapon . | . . . . . . Piercing Weapon . | . . . . . . Special Melee Weapon . | . . . . . . Unidentified Prototypes 2 | . . . 2 . . Parts Lost 21 | . 1 9 4 1 6 Power 5 | . . 2 1 . 2 Propulsion 7 | . . 4 2 . 1 Utility 3 | . . . 1 1 1 Weapon 6 | . 1 3 . . 2 Highest Loss Streak 6 | . 1 6 2 1 6 Average Slot Usage (%) 94 | . 99 70 86 100 98 Engine 10 | . 14 8 10 11 10 Treads 16 | . . . 13 22 21 Leg 1 | . 21 . . . . Wheel 2 | . 7 21 2 . . Storage 21 | . 28 28 17 22 22 Processor 10 | . . . 12 11 11 Protection 8 | . . . 9 11 10 Energy Gun 1 | . 15 3 . . . Ballistic Gun 19 | . 11 8 17 20 21 Naked Turns . | . . . . . . Heaviest Build 36 | 14 15 12 31 32 36 Greatest Support 40 | 20 20 20 40 40 40 Greatest Overweight (x) 4 | . 1 1 4 . 1 Average Overweight (x) . | . . . . . . Largest Inventory Capacity 12 | 8 8 8 10 10 12 Average Capacity 9 | 6 8 8 7 10 10 Most Carried 10 | 6 8 8 10 10 10 Average Carried 8 | 6 7 5 6 9 9 Final Capacity 12 | 8 8 8 10 10 12 Final Carried 10 | 6 8 6 10 9 5 Class Distribution -------------------- 50% | Scavenger-Mutant 49% | Mutant Dominant Class ---------------- Mutant | -10/Materials Mutant | -10/Mines Scavenger-Mutant | -9/Materials Scavenger-Mutant | -9/Mines Scavenger-Mutant | -9/Exiles Resources | -11 -10 -10 -9 -9 -9 ----------- Run | Scr Mat Min Mat Min Exi Matter Collected 782 | 212 53 43 310 131 33 Remotely . | . . . . . . Salvage Created 944 | 78 209 85 265 212 95 Parts 40 | 1 8 7 15 9 . Haulers Intercepted 1 | . . . 1 . . Recyclers Shooed 1 | . . . 1 . . Parts Field Recycled . | . . . . . . Retrieved Matter . | . . . . . . Parts Self-Destructed . | . . . . . . Prevented . | . . . . . . Kills | -11 -10 -10 -9 -9 -9 ------- Run | Scr Mat Min Mat Min Exi Combat Hostiles Destroyed 22 | . 4 4 4 4 6 Melee 1 | . . 1 . . . Guns 21 | . 4 3 4 4 6 Classes Destroyed 8 | 1 1 1 3 1 1 Hauler 1 | . . . 1 . . Recycler 1 | 1 . . . . . Operator 1 | . . . 1 . . Swarmer 3 | . . 3 . . . Grunt 7 | . 4 1 1 1 . Brawler 1 | . . . . 1 . Sentry 5 | . . . 3 2 . Assembled 6 | . . . . . 6 Best Kill Streak 6 | 1 2 3 3 2 6 Combat Bots Only 6 | . 2 3 2 2 6 Max Kills in Single Turn 1 | 1 1 1 1 1 1 Gunslinging . | . . . . . . Exploded . | . . . . . . Melee 1 | . . 1 . . . Uniques/NPCs Destroyed . | . . . . . . Combat | -11 -10 -10 -9 -9 -9 -------- Run | Scr Mat Min Mat Min Exi Damage Taken 3006 | . 322 637 435 374 1238 Core 547 | . 15 132 87 53 260 Absorbed by Shields . | . . . . . . Core Remaining (%) 70 | 100 . 41 . . . Volleys Fired 129 | 2 19 36 27 16 29 Largest 2 | 2 2 2 2 2 2 Hottest 90 | 70 70 90 60 46 46 Shots Fired 206 | 4 37 37 42 32 54 Gun 204 | 4 37 37 40 32 54 Cannon 2 | . . . 2 . . Launcher . | . . . . . . Special . | . . . . . . Kinetic 176 | 2 18 30 40 32 54 Thermal 11 | 2 2 5 2 . . Explosive . | . . . . . . Electromagnetic 19 | . 17 2 . . . Robot Hit Streak 22 | 3 10 5 14 22 19 Robot Miss Streak 6 | . 4 6 1 1 1 Penetration Max . | . . . . . . Secondary Targets 5 | . 1 . 2 1 1 Max Gunslinging Chain 1 | . 1 . 1 1 1 Shots Hit Robots 161 | 3 27 23 33 31 44 Core Hits 58 | 2 11 11 12 9 13 Critical Hits 1 | . . . 1 . . Critical Kills . | . . . . . . Critical Parts Destroyed 1 | . . . 1 . . Melee Attacks . | . . . . . . Impact . | . . . . . . Slashing . | . . . . . . Piercing . | . . . . . . Sneak Attacks . | . . . . . . Combat Hostiles . | . . . . . . Follow-up Attacks . | . . . . . . Damage Inflicted 2223 | 33 362 201 532 428 667 Guns 2142 | 33 304 178 532 428 667 Cannons . | . . . . . . Explosions 58 | . 58 . . . . Melee . | . . . . . . Ramming 23 | . . 23 . . . Kinetic 1889 | 8 88 166 532 428 667 Thermal 107 | 25 70 12 . . . Explosive . | . . . . . . Electromagnetic 204 | . 204 . . . . Impact . | . . . . . . Slashing . | . . . . . . Piercing . | . . . . . . Highest Corruption 6 | . . 6 2 2 2 Average Corruption 2 | . . 5 2 2 2 Corruption Purged . | . . . . . . Effects 31 | . . 7 7 3 14 Message Errors 7 | . . 1 1 . 5 Heat Flow Errors 8 | . . . . 2 6 Energy Discharges 4 | . . 1 2 . 1 Data Loss (minor) 4 | . . 1 2 . 1 Targeting Errors 7 | . . 3 2 1 1 Weapon Failures 1 | . . 1 . . . Overload Shots . | . . . . . . Overflow Damage . | . . . . . . Projectiles . | . . . . . . Explosions . | . . . . . . Melee . | . . . . . . Knockbacks . | . . . . . . Impact . | . . . . . . Kinetic . | . . . . . . Secondary . | . . . . . . Self-Inflicted Damage 9 | . . 9 . . . Shots . | . . . . . . Rammed 7 | . . 7 . . . Targets Rammed 7 | . . 7 . . . Kicked . | . . . . . . Crushed . | . . . . . . Highest Temperature 272 | 40 133 35 50 189 272 Average Temperature 57 | 20 64 16 12 52 90 Received Heat Transfer 743 | . 186 156 165 156 80 Siege Activations . | . . . . . . Robots Corrupted . | . . . . . . Combat Hostiles . | . . . . . . Parts Fried . | . . . . . . Impact Corruptions . | . . . . . . Robots Melted . | . . . . . . Combat Hostiles . | . . . . . . Parts Melted . | . . . . . . Heat Transferred 198 | 74 87 37 . . . Parts Sabotaged . | . . . . . . Parts Stolen . | . . . . . . Parts Stripped . | . . . . . . Power Chain Reactions 1 | . 1 . . . . Missiles Intercepted . | . . . . . . Alert | -11 -10 -10 -9 -9 -9 ------- Run | Scr Mat Min Mat Min Exi Peak Influence 215 | 5 145 95 215 129 . Initial 25 | . 3 . 25 19 . Average 70 | 4 57 54 76 88 . Maximum Alert Level 1 | . . . 1 . . Low Security (%) 97 | 100 100 100 95 100 . Level 1 2 | . . . 4 . . Level 2 . | . . . . . . Level 3 . | . . . . . . Level 4 . | . . . . . . Level 5 . | . . . . . . High Security . | . . . . . . Max Security . | . . . . . . Squads Dispatched 2 | . . . 2 . . Investigation . | . . . . . . Extermination . | . . . . . . Reinforcement 2 | . . . 2 . . Assault . | . . . . . . Garrison . | . . . . . . Intercept . | . . . . . . Construction Impeded . | . . . . . . Haulers Reinforced . | . . . . . . Stealth | -11 -10 -10 -9 -9 -9 --------- Run | Scr Mat Min Mat Min Exi Distress Signals 1 | . . . 1 . . Communications Jammed . | . . . . . . Distress Signals . | . . . . . . Times Spotted 38 | . 6 8 11 5 8 Peak Tracking Total 9 | . 4 3 3 3 9 Tactical Retreats 4 | . . 1 2 1 . Traps | -11 -10 -10 -9 -9 -9 ------- Run | Scr Mat Min Mat Min Exi Traps Triggered . | . . . . . . Indirectly . | . . . . . . Trap Hack Attempts . | . . . . . . Triggered . | . . . . . . Disarmed . | . . . . . . Reprogrammed . | . . . . . . Reused . | . . . . . . Traps Extracted . | . . . . . . Installed . | . . . . . . Triggered . | . . . . . . Machines | -11 -10 -10 -9 -9 -9 ---------- Run | Scr Mat Min Mat Min Exi Machines Disabled 2 | . . . 1 . 1 Max in Single Turn 1 | . . . 1 . 1 Machines Sabotaged . | . . . . . . Garrisons Compromised . | . . . . . . Overloaded Fab Kills . | . . . . . . Fab Network Shutdowns . | . . . . . . Hacking | -11 -10 -10 -9 -9 -9 --------- Run | Scr Mat Min Mat Min Exi Machines Accessed 9 | . 2 . 3 . 4 Terminals 4 | . 2 . 2 . . Fabricators . | . . . . . . Repair Stations . | . . . . . . Recycling Units 1 | . . . 1 . . Scanalyzers . | . . . . . . Garrison Access . | . . . . . . Total Hacks 45 | . 9 . 8 . 28 Successful 37 | . 5 . 4 . 28 Failed 8 | . 4 . 4 . . Catastrophic 2 | . 1 . 1 . . Database Lockouts . | . . . . . . Manual 8 | . 3 . 5 . . Terminals 15 | . 9 . 6 . . Fabricators . | . . . . . . Repair Stations . | . . . . . . Recycling Units 2 | . . . 2 . . Scanalyzers . | . . . . . . Garrison Access . | . . . . . . Terminal Hacks 33 | . 4 . 1 . 28 Record 28 | . . . . . 28 Robot Analysis 1 | . 1 . . . . Branch Access Points 2 | . 1 . 1 . . Unreport Threat 1 | . 1 . . . . Locate Traps 1 | . 1 . . . . Fabricator Hacks . | . . . . . . Repair Station Hacks . | . . . . . . Recycling Unit Hacks 2 | . . . 2 . . Report Inventory 1 | . . . 1 . . Retrieve Components 1 | . . . 1 . . Scanalyzer . | . . . . . . Garrison Access Hacks . | . . . . . . Unauthorized Hacks 2 | . 1 . 1 . . Terminals 2 | . 1 . 1 . . Botnet 2 | . 1 . 1 . . Fabricators . | . . . . . . Repair Stations . | . . . . . . Recycling Units . | . . . . . . Scanalyzers . | . . . . . . Garrison Access . | . . . . . . Data Cores Recovered . | . . . . . . Used . | . . . . . . Hacking Detections 5 | . 2 . 3 . . Full Trace Events . | . . . . . . Feedback Events . | . . . . . . Feedback Blocked . | . . . . . . Robot Schematics Acquired . | . . . . . . Robots Built . | . . . . . . Matter . | . . . . . . Time . | . . . . . . Total Robot Build Rating . | . . . . . . Part Schematics Acquired . | . . . . . . Parts Built . | . . . . . . Matter . | . . . . . . Time . | . . . . . . Total Part Build Rating . | . . . . . . Parts Repaired . | . . . . . . Time . | . . . . . . Parts Recycled . | . . . . . . Recycled Matter . | . . . . . . Retrieved Matter . | . . . . . . Retrieved Components 2 | . . . 2 . . Parts Scanalyzed . | . . . . . . Part Schematics Acquired . | . . . . . . Parts Damaged . | . . . . . . Bothacking | -11 -10 -10 -9 -9 -9 ------------ Run | Scr Mat Min Mat Min Exi Used RIF Installer . | . . . . . . Robots Hacked . | . . . . . . Non-combat . | . . . . . . Combat . | . . . . . . Robot Hacks Applied . | . . . . . . Relay Couplers Released . | . . . . . . Robots Rewired . | . . . . . . Allies Hacked . | . . . . . . Hacks Repelled . | . . . . . . Allies | -11 -10 -10 -9 -9 -9 -------- Run | Scr Mat Min Mat Min Exi Total Allies . | . . . . . . Largest Group . | . . . . . . Highest-Rated Group . | . . . . . . Highest-Rated Ally . | . . . . . . Total Orders . | . . . . . . Ally Attacks . | . . . . . . Total Damage . | . . . . . . Kills . | . . . . . . Allies Corrupted . | . . . . . . Allies Melted . | . . . . . . Intel | -11 -10 -10 -9 -9 -9 ------- Run | Scr Mat Min Mat Min Exi Robot Analysis Total 1 | . 1 . . . . Derelict Logs Recovered 1 | . . 1 . . . Drone Launches . | . . . . . . Drone Recoveries . | . . . . . . Exploration | -11 -10 -10 -9 -9 -9 ------------- Run | Scr Mat Min Mat Min Exi Turns Passed 2464 | 21 206 123 639 156 1319 Spaces Moved 1389 | 12 130 51 370 64 762 Core 6 | . . . 6 . . Treads 1103 | . . . 277 64 762 Legs 106 | 12 94 . . . . Wheels 174 | . 36 51 87 . . Hover . | . . . . . . Flight . | . . . . . . Fastest Speed 80 | 120 80 80 80 160 160 Average Speed 147 | 120 109 80 142 160 160 Slowest Speed 250 | 120 120 90 250 160 180 Overloaded Moves . | . . . . . . Propulsion Burnouts . | . . . . . . Robots Hopped . | . . . . . . Cave-ins Triggered . | . . . . . . Exploration Rate (%) 33 | 2 35 8 32 28 93 Regions Visited 5 Branch Regions 3 Pre-discovered Areas 2 | . . 1 . . 1 Known Exits Taken 2 | . 1 . 1 . . Unknown Exits Taken 3 | 1 . 1 . 1 . Scrap Searched . | . . . . . . Spaces Dug 1 | . . . 1 . . Terrain Destroyed 6 | . 5 . 1 . . Melee . | . . . . . . Projectile 1 | . . . 1 . . AOE 5 | . 5 . . . . Terrain Rammed . | . . . . . . Walls Destroyed . | . . . . . . Machines Disabled . | . . . . . . Actions | -11 -10 -10 -9 -9 -9 --------- Run | Scr Mat Min Mat Min Exi Total 1610 | 14 161 100 440 87 808 Wait 7 | . . . 3 . 4 Move 1384 | 11 129 50 369 63 762 Hop . | . . . . . . Pick Up 21 | . 5 2 10 1 3 Fast Attach 20 | 1 2 1 14 . 2 Attach 14 | . 1 4 3 1 5 Detach 3 | . . . 3 . . Swap 7 | . 1 . 2 3 1 Drop 18 | . 4 . 9 3 2 Fire 129 | 2 19 36 27 16 29 Melee . | . . . . . . Ram 7 | . . 7 . . . Kick . | . . . . . . Crush . | . . . . . . Escape Stasis . | . . . . . . Rewire . | . . . . . . Trap . | . . . . . . Miscellaneous . | . . . . . . Route ------- -11/Scrapyard -10/Materials (discovered 3 exits: *Mat / *Min x2) -10/Mines -9/Materials (discovered 3 exits: [*Mat] / *Min x2) -9/Mines -9/Exiles (discovered 2 exits: [*Min x2]) History --------- Turn | Location | Event 7 | -11/Scrapyard | Discovered new exit (range 3) 22 | -11/Scrapyard | Entered Materials 75 | -10/Materials | Identified exit to Mines 165 | -10/Materials | Discovered new exit (range 5) 228 | -10/Materials | Entered Mines 262 | -10/Mines | Core integrity fell below 50% 295 | -10/Mines | Lost 6 parts (1p3n2w) 297 | -10/Mines | Discovered new exit (range 8) 310 | -10/Mines | Build established: Mutant 340 | -10/Mines | Learned location of Zion (-6) 351 | -10/Mines | Entered Materials 351 | -9/Materials | Evolved 2 slots: Utility x2 367 | -9/Materials | Lost 3 parts (1p1n1w) 386 | -9/Materials | Identified exit to Mines 750 | -9/Materials | Discovered new exit (range 16) 990 | -9/Materials | Entered Mines 1032 | -9/Mines | Build established: Scavenger-Mutant 1140 | -9/Mines | Deemed a non-threat by the Exiles lab entrance 1140 | -9/Mines | Discovered new exit (range 5) 1146 | -9/Mines | Entered Exiles 1186 | -9/Exiles | Met 8R-AWN 1211 | -9/Exiles | Met EX-HEX 1290 | -9/Exiles | Met EX-DEC 1320 | -9/Exiles | Visited The Gauntlet 1663 | -9/Exiles | Met EX-BIN 1910 | -9/Exiles | Discovered new exit (range 14) 2094 | -9/Exiles | Discovered new exit (range 15) 2169 | -9/Exiles | Build established: Mutant 2356 | -9/Exiles | Attacked by the Exiles 2396 | -9/Exiles | Core integrity fell below 50% 2429 | -9/Exiles | Core integrity fell below 20% 2461 | -9/Exiles | Lost 6 parts (2p1n1u2w) 2465 | -9/Exiles | Destroyed by 8R-AWN with 8R-AWN's Boregun Last Messages --------------- 02452_ Penetrated by HV Slug. 02452_ HV Slug penetrates Wall. 02452_ Penetrated by HV Slug. 02452_ HV Slug penetrates Wall. 02454_ Acquired Lgt. Treads. 02455_ Penetrated by HV Slug. 02455_ HV Slug penetrates Earth. 02455_ Penetrated by HV Slug. 02455_ HV Slug penetrates Earth. 02457_ Penetrated by HV Slug. 02457_ HV Slug penetrates Earth. 02457_ Penetrated by HV Slug. 02457_ HV Slug penetrates Earth. 02459_ Penetrated by HV Slug. 02459_ HV Slug penetrates Earth. 02459_ Penetrated by HV Slug. 02459_ HV Slug penetrates Earth. 02463_ HV Slug penetrates DEC's Workstation. 02463_ HV Slug penetrates Wall. 02465_ Penetrated by HV Slug. Map ----- +----------------------------------------------------+ | | | | | | | | | | | | | ?????????????????????????????????????????????????? | | ?????????????????????????????????????????????????? | | ?????????????????????????????????????????????????? | | ?????????????????????????????????????????????????? | | ?????????????????????????????????????????????????? | | ?????????????????????????????########????????????? | | ?????????????????????????????#X #????????????? | | ??????????????????????????????# #????????????? | | ??????????????????????????????# #????????????? | | ??????????????????????????????# #########????? | | ??????????????????????????????# ##""""""#????? | | ??????????????????????????????# ## """#????? | | ??????????????????????????????# X""#????? | | ??????????????????????????????# ## """#????? | | ??????????????????????######### ##""""""#????? | | ??????????????????????#""""""## #########????? | | ??????????????????????#"""" ## #????????????? | | ??????????????????#####" X"% #????????????? | | ??????????????????# ; %% g #????????????? | | ???????????????????# ; @ ## #????????????? | | ?????????????????# ; % ""## #????????????? | | ?????????????# ###;# ###### #??""""""????? | | ?????????????# #????# #????# #?#""""""????? | | ????????????????????#""" #????# #?#"""""""???? | | ????????????????????#""" #???## ###"" """"???? | | ####????????????????#""" #???#" """"#??? | | ! "#????????????????######???#" """#??? | | "#?????????????????????????#" """#??? | | "#?????????????????????????#" """#??? | | ""#??????????########???????#" """#??? | | ""#??????????# """#???????#" """##?? | | ""#??????????#"" """#???????## """""?? | | #????????????#"" #????????# """##?? | | #????????????#"" #????????#" "X" """""?? | | ##???????????#"" "#????????#" """ # ?? | | "#???????????# ""#????????#" """""""""#??? | | ###?????????#"" ""#???????##" ###########??? | | ##????????### ###??????##"" #????????????? | | ######???### ###?######"" #????????????? | | """#####X# #"###""""""" ##???????????? | | """""" " "" ##???######## | | # "" """ " #####""""""" | | ## " " " """ " | | ?### "" | +----------------------------------------------------+ Best States ------------- Heat Dissipation 28 Energy Generation 12 Energy Capacity 265 Matter Stores 300 Matter Capacity 300 Sight Range 16 Robot Scan Range 13 Terrain Scan Density 10 Armor Coverage 225 Evasion (%) 44 Targeting Accuracy 16 Recoil Reduction 2 Item Schematics ----------------- None Robot Schematics ------------------ None Fabricated ------------ Nothing Alien Tech Used ----------------- None Achievements -------------- None Challenges ------------ None Game ------ Seed SurveybotRemoteClaws Manual? 0 Play Time 00:20:18 Cumulative 92.0 hours Start 2020.10.30 @ 18:16:07 End 2020.10.30 @ 18:36:20 Sessions 1 Manual Loads 0 Difficulty Rogue Special Mode Halloween2020/ForbiddenLore Game No. 104 Rogue 104 Adventurer 0 Explorer 0 Win Type - Total 1 Types 1/0/0/0/0/0/0/0/0 Lore% 56 Gallery% 60 Achievement% 47 Wizard Run 0 Options --------- ASCII 0 Keyboard 0 Movement Numpad Keybinds 0 Fullscreen 1 Font 24/Smallcaps Map View 76x50 Tactical HUD 1 Map Filters NONE Filters NONE Steam 1 RUN: 27ca52bf-9cde-41ba-a9e5-d0c5cb0d44b0